[Event "EYCC 2017"]
[Site "Mamaia"]
[Date "2017.09.08"]
[Round "4"]
[White "Maltsevskaya, Aleksandra"]
[Black "Kostecka, Marika"]
[Result "1-0"]
[ECO "B90"]
[WhiteElo "2271"]
[BlackElo "1811"]
[Annotator "NA"]
[PlyCount "63"]
[EventDate "2017.??.??"]
[EventType "swiss"]
[EventCountry "ROU"]
[SourceTitle "playchess.com"]
[Source "ChessBase"]
[SourceQuality "1"]
[TimeControl "40/5400+30:1800+30"]

1. e4 {[%emt 0:00:00]} c5 {[%emt 0:00:08]} 2. Nf3 {[%emt 0:00:00]} d6 {[%emt 0:00:13]} 3. d4 {[%emt 0:00:00]} cxd4 {[%emt 0:00:15]} 4. Nxd4 {[%emt 0:00:00]} Nf6 {[%emt 0:00:12]} 5. Nc3 {[%emt 0:00:03]} a6 {[%emt 0:00:09]} 6. h3 {[%emt 0:00:10]} e5 {[%emt 0:01:20]} 7. Nde2 {[%emt 0:01:14]} h5 {[%emt 0:00:24]} 8. Bg5 {[%emt 0:00:08]} Be6 {[%emt 0:00:42]} 9. g3 {[%emt 0:00:28]} Nbd7 {[%emt 0:05:26]} 10. Bg2 {[%emt 0:01:18]} Be7 {[%emt 0:12:00]} 11. O-O {[%emt 0:02:39]} O-O {[%emt 0:20:22]} 12. a4 {[%emt 0:00:59]} Re8 {[%emt 0:04:33]} 13. Qd2 {[%emt 0:04:06]} Nf8 {[%emt 0:07:23]} 14. Rad1 {[%emt 0:04:14]} Qd7 {[%emt 0:04:26]} 15. Kh2 {[%emt 0:13:11]} N8h7 {[%emt 0:06:15]} 16. Be3 {[%emt 0:03:40]} h4 {[%emt 0:03:06]} 17. gxh4 {[%emt 0:03:26]} Nh5 {[%emt 0:03:19]} 18. Ng3 {[%emt 0:00:35]} N7f6 {[%emt 0:13:52]} 19. b3 {[%emt 0:14:50]} g6 {[%emt 0:05:09]} 20. a5 {[%emt 0:05:12]} Qc6 {[%emt 0:07:39]} 21. Nce2 {[%emt 0:04:59]} Ng7 {[%emt 0:00:35]} 22. c4 {[%emt 0:01:38]} Nfh5 {[%emt 0:00:37]} 23. Nxh5 {[%emt 0:02:30]} Nxh5 {[%emt 0:00:07]} 24. Ng3 {[%emt 0:00:05]} Ng7 {[%emt 0:02:13]} 25. h5 {[%emt 0:00:28]} gxh5 {[%emt 0:00:13]} 26. Rg1 {[%emt 0:01:27]} Kh7 {[%emt 0:00:37]} 27. Nf5 {[%emt 0:04:01]} Bxf5 {[%emt 0:00:20]} 28. exf5 {[%emt 0:00:06]} Qd7 {[%emt 0:00:05]} 29. Be4 {[%emt 0:00:14]} Kh8 {[%emt 0:01:23]} 30. Rxg7 {[%emt 0:00:20]} Kxg7 {[%emt 0:00:12]} 31. Rg1+ {[%emt 0:00:07]} Kh8 {[%emt 0:00:16]} 32. Qe2 {[%emt 0:00:09]} 1-0

[Event "EYCC 2017"]
[Site "Mamaia"]
[Date "2017.09.08"]
[Round "4"]
[White "Yeritsyan, Aram"]
[Black "Manafov, Vugar"]
[Result "1-0"]
[ECO "B03"]
[WhiteElo "2264"]
[BlackElo "2204"]
[Annotator "NA"]
[PlyCount "69"]
[EventDate "2017.??.??"]
[EventType "swiss"]
[EventCountry "ROU"]
[SourceTitle "playchess.com"]
[Source "ChessBase"]
[SourceQuality "1"]
[TimeControl "40/5400+30:1800+30"]

1. e4 {[%emt 0:00:00]} Nf6 {[%emt 0:00:04]} 2. e5 {[%emt 0:00:00]} Nd5 {[%emt 0:00:05]} 3. d4 {[%emt 0:00:00]} d6 {[%emt 0:00:08]} 4. c4 {[%emt 0:00:00]} Nb6 {[%emt 0:00:04]} 5. exd6 {[%emt 0:00:00]} cxd6 {[%emt 0:00:06]} 6. Nc3 {[%emt 0:00:00]} g6 {[%emt 0:00:05]} 7. Be3 {[%emt 0:00:00]} Bg7 {[%emt 0:00:05]} 8. Rc1 {[%emt 0:00:00]} O-O {[%emt 0:00:21]} 9. b3 {[%emt 0:00:05]} Bf5 {[%emt 0:00:08]} 10. Be2 {[%emt 0:00:23]} d5 {[%emt 0:00:18]} 11. c5 {[%emt 0:00:06]} Nc8 {[%emt 0:00:04]} 12. g4 {[%emt 0:00:28]} Be6 {[%emt 0:00:10]} 13. h3 {[%emt 0:04:02]} Nc6 {[%emt 0:00:38]} 14. Nf3 {[%emt 0:01:06]} Qd7 {[%emt 0:03:58]} 15. Ng5 {[%emt 0:10:41]} b6 {[%emt 0:16:03]} 16. Na4 {[%emt 0:07:03]} f6 {[%emt 0:04:16]} 17. cxb6 {[%emt 0:07:31]} fxg5 {[%emt 0:02:06]} 18. Bb5 {[%emt 0:07:04]} Qd6 {[%emt 0:03:45]} 19. b7 {[%emt 0:04:11]} Rb8 {[%emt 0:02:23]} 20. Bxc6 {[%emt 0:12:15]} Nb6 {[%emt 0:01:05]} 21. Nxb6 {[%emt 0:01:47]} axb6 {[%emt 0:00:29]} 22. Qd3 {[%emt 0:06:29]} Rf3 {[%emt 0:06:34]} 23. Qb5 {[%emt 0:03:53]} Rbf8 {[%emt 0:06:18]} 24. Qxb6 {[%emt 0:01:27]} Qa3 {[%emt 0:10:30]} 25. Rc2 {[%emt 0:04:15]} Qd6 {[%emt 0:00:46]} 26. Kd1 {[%emt 0:00:27]} Rxh3 {[%emt 0:02:59]} 27. Rxh3 {[%emt 0:01:31]} Bxg4+ {[%emt 0:00:01]} 28. Kc1 {[%emt 0:03:47]} Bxh3 {[%emt 0:00:14]} 29. Qc7 {[%emt 0:09:40]} Qxc7 {[%emt 0:02:57]} 30. Bxd5+ {[%emt 0:00:01]} e6 {[%emt 0:00:09]} 31. Rxc7 {[%emt 0:00:10]} exd5 {[%emt 0:00:05]} 32. a4 {[%emt 0:00:04]} Re8 {[%emt 0:01:41]} 33. a5 {[%emt 0:00:40]} Bf8 {[%emt 0:00:05]} 34. Rc6 {[%emt 0:05:49]} Bf1 {[%emt 0:04:41]} 35. Rc8 {[%emt 0:01:39]} 1-0

[Event "EYCC 2017"]
[Site "Mamaia"]
[Date "2017.09.08"]
[Round "4"]
[White "Afonasieva, Anna"]
[Black "Badelka, Olga"]
[Result "0-1"]
[ECO "E10"]
[WhiteElo "2263"]
[BlackElo "2335"]
[Annotator "NA"]
[PlyCount "72"]
[EventDate "2017.??.??"]
[EventType "swiss"]
[EventCountry "ROU"]
[SourceTitle "playchess.com"]
[Source "ChessBase"]
[SourceQuality "1"]
[TimeControl "40/5400+30:1800+30"]

1. d4 {[%emt 0:00:00]} Nf6 {[%emt 0:00:05]} 2. Nf3 {[%emt 0:00:00]} c5 {[%emt 0:00:03]} 3. d5 {[%emt 0:00:02]} e6 {[%emt 0:00:07]} 4. c4 {[%emt 0:00:23]} b5 {[%emt 0:00:04]} 5. Bg5 {[%emt 0:01:03]} b4 {[%emt 0:01:09]} 6. e4 {[%emt 0:02:27]} d6 {[%emt 0:00:04]} 7. Bd3 {[%emt 0:02:13]} Be7 {[%emt 0:00:07]} 8. O-O {[%emt 0:03:40]} h6 {[%emt 0:00:09]} 9. Bxf6 {[%emt 0:05:52]} Bxf6 {[%emt 0:00:14]} 10. e5 {[%emt 0:05:00]} dxe5 {[%emt 0:01:07]} 11. Qe2 {[%emt 0:04:13]} exd5 {[%emt 0:04:19]} 12. cxd5 {[%emt 0:01:33]} Nd7 {[%emt 0:07:59]} 13. Nbd2 {[%emt 0:02:19]} Bb7 {[%emt 0:03:46]} 14. Rfd1 {[%emt 0:03:07]} O-O {[%emt 0:05:56]} 15. Ne4 {[%emt 0:08:20]} Qb6 {[%emt 0:00:23]} 16. Ng3 {[%emt 0:06:34]} Rfd8 {[%emt 0:04:01]} 17. Nf5 {[%emt 0:12:58]} Bxd5 {[%emt 0:08:48]} 18. Bc2 {[%emt 0:05:32]} Qc6 {[%emt 0:19:28]} 19. Rxd5 {[%emt 0:12:36]} Qxd5 {[%emt 0:00:04]} 20. Bb3 {[%emt 0:00:06]} c4 {[%emt 0:04:23]} 21. Bxc4 {[%emt 0:01:11]} Qc5 {[%emt 0:00:11]} 22. Qe4 {[%emt 0:04:35]} Qf8 {[%emt 0:03:36]} 23. N3h4 {[%emt 0:04:36]} Bxh4 {[%emt 0:06:52]} 24. Qxh4 {[%emt 0:00:05]} Kh8 {[%emt 0:02:59]} 25. Re1 {[%emt 0:01:35]} Rac8 {[%emt 0:02:06]} 26. Bb3 {[%emt 0:00:38]} Nc5 {[%emt 0:01:37]} 27. h3 {[%emt 0:04:35]} e4 {[%emt 0:08:27]} 28. Re3 {[%emt 0:02:30]} Rd3 {[%emt 0:00:33]} 29. Bc2 {[%emt 0:02:07]} Rxe3 {[%emt 0:00:10]} 30. Nxe3 {[%emt 0:00:24]} f5 {[%emt 0:02:38]} 31. Nd5 {[%emt 0:02:23]} Kh7 {[%emt 0:02:16]} 32. Nxb4 {[%emt 0:01:16]} Ne6 {[%emt 0:01:08]} 33. a3 {[%emt 0:01:28]} a5 {[%emt 0:00:10]} 34. Bb3 {[%emt 0:00:09]} axb4 {[%emt 0:00:15]} 35. Bxe6 {[%emt 0:00:04]} Rc1+ {[%emt 0:00:03]} 36. Kh2 {[%emt 0:00:04]} Qd6+ {[%emt 0:00:06]} 0-1

[Event "EYCC 2017"]
[Site "Mamaia"]
[Date "2017.09.08"]
[Round "4"]
[White "Mis, Mieszko"]
[Black "Golding, Alex"]
[Result "1-0"]
[ECO "A10"]
[WhiteElo "2245"]
[BlackElo "2198"]
[Annotator "NA"]
[PlyCount "37"]
[EventDate "2017.??.??"]
[EventType "swiss"]
[EventCountry "ROU"]
[SourceTitle "playchess.com"]
[Source "ChessBase"]
[SourceQuality "1"]
[TimeControl "40/5400+30:1800+30"]

1. c4 {[%emt 0:00:00]} g6 {[%emt 0:00:29]} 2. g3 {[%emt 0:00:00]} Bg7 {[%emt 0:00:24]} 3. Bg2 {[%emt 0:00:04]} c6 {[%emt 0:01:05]} 4. Nc3 {[%emt 0:01:21]} e5 {[%emt 0:00:23]} 5. e4 {[%emt 0:02:36]} Ne7 {[%emt 0:00:08]} 6. Nge2 {[%emt 0:00:26]} O-O {[%emt 0:00:07]} 7. O-O {[%emt 0:01:15]} f5 {[%emt 0:05:40]} 8. d4 {[%emt 0:02:29]} exd4 {[%emt 0:02:58]} 9. Nxd4 {[%emt 0:00:07]} fxe4 {[%emt 0:03:51]} 10. Nxe4 {[%emt 0:04:48]} d5 {[%emt 0:00:14]} 11. Ng5 {[%emt 0:02:06]} Qd6 {[%emt 0:04:10]} 12. Re1 {[%emt 0:07:08]} Be5 {[%emt 0:09:10]} 13. c5 {[%emt 0:03:31]} Qf6 {[%emt 0:00:29]} 14. Ndf3 {[%emt 0:01:09]} Bc7 {[%emt 0:01:38]} 15. Nxh7 {[%emt 0:00:53]} Kxh7 {[%emt 0:00:44]} 16. Bg5 {[%emt 0:00:03]} Qg7 {[%emt 0:00:38]} 17. Rxe7 {[%emt 0:00:04]} Rf7 {[%emt 0:00:06]} 18. Bf6 {[%emt 0:00:27]} Qxf6 {[%emt 0:01:20]} 19. Rxf7+ {[%emt 0:00:05]} 1-0

[Event "EYCC 2017"]
[Site "Mamaia"]
[Date "2017.09.08"]
[Round "4"]
[White "De Boer, Eelke"]
[Black "Schitco, Ivan"]
[Result "1-0"]
[ECO "C84"]
[WhiteElo "2233"]
[BlackElo "2325"]
[Annotator "NA"]
[PlyCount "97"]
[EventDate "2017.??.??"]
[EventType "swiss"]
[EventCountry "ROU"]
[SourceTitle "playchess.com"]
[Source "ChessBase"]
[SourceQuality "1"]
[TimeControl "40/5400+30:1800+30"]

1. e4 {[%emt 0:00:00]} e5 {[%emt 0:00:09]} 2. Nf3 {[%emt 0:00:00]} Nc6 {[%emt 0:00:06]} 3. Bb5 {[%emt 0:00:00]} a6 {[%emt 0:00:10]} 4. Ba4 {[%emt 0:00:00]} Nf6 {[%emt 0:00:15]} 5. O-O {[%emt 0:00:00]} Be7 {[%emt 0:00:18]} 6. d3 {[%emt 0:00:08]} b5 {[%emt 0:00:31]} 7. Bb3 {[%emt 0:00:07]} d6 {[%emt 0:00:29]} 8. a3 {[%emt 0:00:08]} O-O {[%emt 0:01:00]} 9. Nc3 {[%emt 0:00:07]} Na5 {[%emt 0:04:37]} 10. Ba2 {[%emt 0:00:12]} c5 {[%emt 0:01:02]} 11. b4 {[%emt 0:00:07]} cxb4 {[%emt 0:01:21]} 12. axb4 {[%emt 0:00:07]} Nc6 {[%emt 0:00:29]} 13. Nd5 {[%emt 0:00:07]} Nxd5 {[%emt 0:08:01]} 14. Bxd5 {[%emt 0:01:35]} Qc7 {[%emt 0:02:18]} 15. c3 {[%emt 0:06:50]} Be6 {[%emt 0:04:18]} 16. Qb3 {[%emt 0:01:23]} Qd7 {[%emt 0:05:09]} 17. Be3 {[%emt 0:03:47]} Rfb8 {[%emt 0:12:44]} 18. Ra3 {[%emt 0:04:10]} a5 {[%emt 0:02:13]} 19. Bxe6 {[%emt 0:01:03]} Qxe6 {[%emt 0:02:54]} 20. Qxe6 {[%emt 0:00:43]} fxe6 {[%emt 0:00:05]} 21. bxa5 {[%emt 0:00:22]} Rxa5 {[%emt 0:00:44]} 22. Rxa5 {[%emt 0:00:16]} Nxa5 {[%emt 0:00:05]} 23. Ra1 {[%emt 0:03:47]} Bd8 {[%emt 0:03:33]} 24. Ng5 {[%emt 0:09:14]} Bxg5 {[%emt 0:04:25]} 25. Rxa5 {[%emt 0:09:54]} Bxe3 {[%emt 0:00:08]} 26. fxe3 {[%emt 0:00:11]} Kf7 {[%emt 0:06:06]} 27. Kf2 {[%emt 0:02:21]} Rc8 {[%emt 0:00:58]} 28. Ra3 {[%emt 0:00:10]} Ke7 {[%emt 0:04:15]} 29. Ke2 {[%emt 0:01:49]} Rc7 {[%emt 0:06:12]} 30. Kd2 {[%emt 0:00:50]} d5 {[%emt 0:01:37]} 31. Ra5 {[%emt 0:05:38]} Rb7 {[%emt 0:08:24]} 32. exd5 {[%emt 0:00:32]} exd5 {[%emt 0:00:03]} 33. Kc2 {[%emt 0:00:08]} d4 {[%emt 0:06:43]} 34. exd4 {[%emt 0:06:57]} exd4 {[%emt 0:00:04]} 35. c4 {[%emt 0:00:27]} bxc4 {[%emt 0:02:00]} 36. dxc4 {[%emt 0:00:07]} Kf6 {[%emt 0:01:19]} 37. h4 {[%emt 0:08:56]} h6 {[%emt 0:02:56]} 38. h5 {[%emt 0:03:49]} Rb6 {[%emt 0:01:19]} 39. g4 {[%emt 0:01:04]} g6 {[%emt 0:00:47]} 40. Kd3 {[%emt 0:00:00]} gxh5 {[%emt 0:00:23]} 41. Rxh5 {[%emt 0:00:46]} Kg6 {[%emt 0:00:07]} 42. Kxd4 {[%emt 0:00:16]} Rb1 {[%emt 0:00:21]} 43. Re5 {[%emt 0:05:30]} Rd1+ {[%emt 0:00:32]} 44. Kc5 {[%emt 0:03:21]} Rg1 {[%emt 0:00:13]} 45. Re4 {[%emt 0:00:06]} h5 {[%emt 0:00:24]} 46. gxh5+ {[%emt 0:02:35]} Kxh5 {[%emt 0:00:09]} 47. Kc6 {[%emt 0:00:59]} Kg6 {[%emt 0:00:10]} 48. c5 {[%emt 0:01:11]} Kf6 {[%emt 0:00:04]} 49. Kc7 {[%emt 0:00:20]} 1-0

[Event "EYCC 2017"]
[Site "Mamaia"]
[Date "2017.09.08"]
[Round "4"]
[White "Schneider, Jana"]
[Black "Lomandong Noela-Joyce"]
[Result "1-0"]
[ECO "B06"]
[WhiteElo "2231"]
[BlackElo "2040"]
[Annotator "NA"]
[PlyCount "73"]
[EventDate "2017.??.??"]
[EventType "swiss"]
[EventCountry "ROU"]
[SourceTitle "playchess.com"]
[Source "ChessBase"]
[SourceQuality "1"]
[TimeControl "40/5400+30:1800+30"]

1. e4 {[%emt 0:00:00]} g6 {[%emt 0:00:05]} 2. d4 {[%emt 0:00:00]} c6 {[%emt 0:00:13]} 3. Nc3 {[%emt 0:00:08]} Bg7 {[%emt 0:00:34]} 4. Bc4 {[%emt 0:00:49]} d5 {[%emt 0:04:10]} 5. exd5 {[%emt 0:04:00]} b5 {[%emt 0:00:19]} 6. Bb3 {[%emt 0:11:24]} b4 {[%emt 0:00:47]} 7. Na4 {[%emt 0:09:17]} cxd5 {[%emt 0:01:10]} 8. Nc5 {[%emt 0:01:42]} Nc6 {[%emt 0:10:33]} 9. Ba4 {[%emt 0:04:05]} Qb6 {[%emt 0:11:46]} 10. a3 {[%emt 0:07:21]} a5 {[%emt 0:19:03]} 11. axb4 {[%emt 0:04:25]} axb4 {[%emt 0:00:54]} 12. Qd3 {[%emt 0:09:48]} Kf8 {[%emt 0:12:07]} 13. Be3 {[%emt 0:04:03]} Nf6 {[%emt 0:01:11]} 14. Nf3 {[%emt 0:04:30]} Bf5 {[%emt 0:10:09]} 15. Qd1 {[%emt 0:01:02]} Ng4 {[%emt 0:05:48]} 16. Nh4 {[%emt 0:07:50]} Nxe3 {[%emt 0:06:02]} 17. fxe3 {[%emt 0:01:55]} Bc8 {[%emt 0:04:58]} 18. O-O {[%emt 0:03:57]} Bf6 {[%emt 0:00:36]} 19. Qf3 {[%emt 0:00:59]} Be6 {[%emt 0:01:18]} 20. Nxe6+ {[%emt 0:01:23]} fxe6 {[%emt 0:00:02]} 21. Qh3 {[%emt 0:00:31]} Nxd4 {[%emt 0:03:20]} 22. Nxg6+ {[%emt 0:07:17]} Kg7 {[%emt 0:02:03]} 23. Nxh8 {[%emt 0:00:36]} Nf5 {[%emt 0:00:17]} 24. Bd7 {[%emt 0:01:53]} Rxh8 {[%emt 0:01:21]} 25. Qg4+ {[%emt 0:00:52]} Kh6 {[%emt 0:00:19]} 26. Rf3 {[%emt 0:00:46]} Bg5 {[%emt 0:00:51]} 27. Bxe6 {[%emt 0:02:42]} Nxe3 {[%emt 0:01:34]} 28. Qh3+ {[%emt 0:03:13]} Kg6 {[%emt 0:01:16]} 29. Kh1 {[%emt 0:00:27]} h5 {[%emt 0:01:01]} 30. Bf7+ {[%emt 0:01:19]} Kg7 {[%emt 0:00:25]} 31. Qg3 {[%emt 0:00:18]} Kh6 {[%emt 0:00:49]} 32. h4 {[%emt 0:00:18]} Ng4 {[%emt 0:00:44]} 33. hxg5+ {[%emt 0:00:08]} Kg7 {[%emt 0:00:27]} 34. Bxd5 {[%emt 0:00:38]} e6 {[%emt 0:00:33]} 35. Bb3 {[%emt 0:01:36]} Kg6 {[%emt 0:00:39]} 36. Qf4 {[%emt 0:00:28]} Rh7 {[%emt 0:00:29]} 37. Ra8 {[%emt 0:00:17]} 1-0

[Event "EYCC 2017"]
[Site "Mamaia"]
[Date "2017.09.08"]
[Round "4"]
[White "Mukhutdinov, Tigran"]
[Black "Sjoberg, Isak"]
[Result "1/2-1/2"]
[ECO "C84"]
[WhiteElo "2227"]
[BlackElo "2078"]
[Annotator "NA"]
[PlyCount "93"]
[EventDate "2017.??.??"]
[EventType "swiss"]
[EventCountry "ROU"]
[SourceTitle "playchess.com"]
[Source "ChessBase"]
[SourceQuality "1"]
[TimeControl "40/5400+30:1800+30"]

1. e4 {[%emt 0:00:00]} e5 {[%emt 0:00:05]} 2. Nf3 {[%emt 0:00:00]} Nc6 {[%emt 0:00:04]} 3. Bb5 {[%emt 0:00:00]} a6 {[%emt 0:00:43]} 4. Ba4 {[%emt 0:00:00]} Nf6 {[%emt 0:00:11]} 5. O-O {[%emt 0:00:03]} Be7 {[%emt 0:01:20]} 6. d3 {[%emt 0:00:08]} d6 {[%emt 0:04:08]} 7. c3 {[%emt 0:06:24]} O-O {[%emt 0:02:45]} 8. Re1 {[%emt 0:01:39]} Nd7 {[%emt 0:11:27]} 9. d4 {[%emt 0:06:24]} exd4 {[%emt 0:10:40]} 10. Nxd4 {[%emt 0:08:47]} Nxd4 {[%emt 0:06:21]} 11. cxd4 {[%emt 0:00:28]} b5 {[%emt 0:00:52]} 12. Bc2 {[%emt 0:00:51]} Bb7 {[%emt 0:05:59]} 13. Nc3 {[%emt 0:01:22]} c5 {[%emt 0:04:59]} 14. dxc5 {[%emt 0:04:25]} dxc5 {[%emt 0:10:10]} 15. Bf4 {[%emt 0:05:04]} Re8 {[%emt 0:04:12]} 16. a4 {[%emt 0:07:11]} b4 {[%emt 0:04:04]} 17. Nd5 {[%emt 0:01:58]} Bxd5 {[%emt 0:03:30]} 18. Qxd5 {[%emt 0:05:08]} Nb6 {[%emt 0:05:48]} 19. Qb7 {[%emt 0:09:16]} Nc4 {[%emt 0:03:28]} 20. Rad1 {[%emt 0:06:00]} Qc8 {[%emt 0:01:06]} 21. Qd5 {[%emt 0:00:54]} Nb6 {[%emt 0:02:24]} 22. Qh5 {[%emt 0:00:46]} c4 {[%emt 0:01:16]} 23. a5 {[%emt 0:05:00]} Nd7 {[%emt 0:02:17]} 24. Ba4 {[%emt 0:01:21]} Rd8 {[%emt 0:00:06]} 25. Be3 {[%emt 0:03:38]} g6 {[%emt 0:01:58]} 26. Qe2 {[%emt 0:01:36]} Ne5 {[%emt 0:00:29]} 27. Bc2 {[%emt 0:01:10]} b3 {[%emt 0:00:49]} 28. Bb1 {[%emt 0:00:09]} Bb4 {[%emt 0:00:51]} 29. Rxd8+ {[%emt 0:00:53]} Qxd8 {[%emt 0:00:01]} 30. Rd1 {[%emt 0:00:07]} Qxa5 {[%emt 0:00:59]} 31. f4 {[%emt 0:00:05]} Nd3 {[%emt 0:01:56]} 32. Bxd3 {[%emt 0:00:06]} cxd3 {[%emt 0:00:03]} 33. Qxd3 {[%emt 0:00:04]} Bc5 {[%emt 0:01:08]} 34. Qxb3 {[%emt 0:02:28]} Bxe3+ {[%emt 0:00:39]} 35. Qxe3 {[%emt 0:00:02]} Rb8 {[%emt 0:00:13]} 36. e5 {[%emt 0:03:12]} Qa2 {[%emt 0:01:28]} 37. f5 {[%emt 0:01:41]} Qa4 {[%emt 0:02:13]} 38. b3 {[%emt 0:00:39]} Qg4 {[%emt 0:00:17]} 39. Rf1 {[%emt 0:00:16]} Re8 {[%emt 0:05:41]} 40. h3 {[%emt 0:00:00]} Qh5 {[%emt 0:01:26]} 41. e6 {[%emt 0:09:15]} fxe6 {[%emt 0:02:30]} 42. f6 {[%emt 0:00:12]} Kf8 {[%emt 0:00:50]} 43. Qa7 {[%emt 0:01:09]} Qh6 {[%emt 0:00:06]} 44. Qc5+ {[%emt 0:00:59]} Kf7 {[%emt 0:00:09]} 45. Qc7+ {[%emt 0:00:09]} Kf8 {[%emt 0:00:06]} 46. f7 {[%emt 0:00:15]} Qe3+ {[%emt 0:00:39]} 47. Kh1 {[%emt 0:00:08]} 1/2-1/2

[Event "EYCC 2017"]
[Site "Mamaia"]
[Date "2017.09.08"]
[Round "4"]
[White "Kubicka, Anna"]
[Black "Rogozenco, Teodora"]
[Result "1-0"]
[ECO "C95"]
[WhiteElo "2221"]
[BlackElo "2024"]
[Annotator "NA"]
[PlyCount "53"]
[EventDate "2017.??.??"]
[EventType "swiss"]
[EventCountry "ROU"]
[SourceTitle "playchess.com"]
[Source "ChessBase"]
[SourceQuality "1"]
[TimeControl "40/5400+30:1800+30"]

1. e4 {[%emt 0:00:00]} e5 {[%emt 0:00:07]} 2. Nf3 {[%emt 0:00:00]} Nc6 {[%emt 0:00:04]} 3. Bb5 {[%emt 0:00:00]} a6 {[%emt 0:00:45]} 4. Ba4 {[%emt 0:00:05]} Nf6 {[%emt 0:00:06]} 5. O-O {[%emt 0:00:13]} Be7 {[%emt 0:00:09]} 6. Re1 {[%emt 0:00:11]} b5 {[%emt 0:00:06]} 7. Bb3 {[%emt 0:00:04]} d6 {[%emt 0:00:06]} 8. c3 {[%emt 0:00:21]} O-O {[%emt 0:00:06]} 9. h3 {[%emt 0:00:08]} Nb8 {[%emt 0:00:16]} 10. d4 {[%emt 0:00:25]} Nbd7 {[%emt 0:00:06]} 11. c4 {[%emt 0:00:30]} c6 {[%emt 0:01:11]} 12. Qc2 {[%emt 0:01:26]} Bb7 {[%emt 0:21:40]} 13. Nc3 {[%emt 0:01:05]} Rc8 {[%emt 0:02:48]} 14. a3 {[%emt 0:07:26]} Qc7 {[%emt 0:01:47]} 15. Be3 {[%emt 0:06:41]} Qb8 {[%emt 0:37:33]} 16. Ba2 {[%emt 0:09:50]} Bd8 {[%emt 0:01:46]} 17. dxe5 {[%emt 0:00:59]} dxe5 {[%emt 0:00:32]} 18. c5 {[%emt 0:00:25]} a5 {[%emt 0:00:32]} 19. b4 {[%emt 0:00:59]} a4 {[%emt 0:00:45]} 20. Rad1 {[%emt 0:03:00]} Be7 {[%emt 0:00:13]} 21. Ne2 {[%emt 0:02:38]} h6 {[%emt 0:16:52]} 22. Ng3 {[%emt 0:01:37]} Rfd8 {[%emt 0:00:05]} 23. Nf5 {[%emt 0:00:54]} Bf8 {[%emt 0:00:04]} 24. g4 {[%emt 0:02:43]} g5 {[%emt 0:03:56]} 25. Bxg5 {[%emt 0:00:40]} hxg5 {[%emt 0:00:06]} 26. Nxg5 {[%emt 0:00:07]} Nd5 {[%emt 0:01:57]} 27. exd5 {[%emt 0:00:31]} 1-0

[Event "EYCC 2017"]
[Site "Mamaia"]
[Date "2017.09.08"]
[Round "4"]
[White "Tsvetkov, Andrey"]
[Black "Vilcu, Matei-Stefan"]
[Result "1/2-1/2"]
[ECO "E91"]
[WhiteElo "2219"]
[BlackElo "1977"]
[Annotator "NA"]
[PlyCount "68"]
[EventDate "2017.??.??"]
[EventType "swiss"]
[EventCountry "ROU"]
[SourceTitle "playchess.com"]
[Source "ChessBase"]
[SourceQuality "1"]
[TimeControl "40/5400+30:1800+30"]

1. d4 {[%emt 0:00:00]} Nf6 {[%emt 0:00:24]} 2. Nf3 {[%emt 0:00:00]} g6 {[%emt 0:02:33]} 3. c4 {[%emt 0:00:05]} Bg7 {[%emt 0:01:54]} 4. Nc3 {[%emt 0:00:01]} O-O {[%emt 0:00:08]} 5. e4 {[%emt 0:00:04]} d6 {[%emt 0:00:03]} 6. Be2 {[%emt 0:00:04]} Na6 {[%emt 0:02:21]} 7. O-O {[%emt 0:02:50]} e5 {[%emt 0:01:24]} 8. Be3 {[%emt 0:01:39]} c6 {[%emt 0:07:29]} 9. d5 {[%emt 0:04:22]} c5 {[%emt 0:03:07]} 10. Ne1 {[%emt 0:02:41]} Ne8 {[%emt 0:02:32]} 11. g4 {[%emt 0:00:41]} f5 {[%emt 0:04:47]} 12. gxf5 {[%emt 0:00:18]} gxf5 {[%emt 0:00:18]} 13. exf5 {[%emt 0:00:28]} Bxf5 {[%emt 0:01:44]} 14. Kh1 {[%emt 0:00:33]} Kh8 {[%emt 0:03:59]} 15. Rg1 {[%emt 0:03:05]} Qd7 {[%emt 0:07:47]} 16. Qd2 {[%emt 0:06:06]} Nf6 {[%emt 0:05:09]} 17. Rg3 {[%emt 0:20:00]} Rg8 {[%emt 0:10:38]} 18. Nf3 {[%emt 0:02:47]} Raf8 {[%emt 0:03:45]} 19. Ng5 {[%emt 0:01:53]} Nc7 {[%emt 0:05:07]} 20. Bd3 {[%emt 0:15:10]} a6 {[%emt 0:14:23]} 21. Rag1 {[%emt 0:03:10]} b5 {[%emt 0:02:57]} 22. b3 {[%emt 0:01:01]} b4 {[%emt 0:02:11]} 23. Nce4 {[%emt 0:00:59]} Nh5 {[%emt 0:02:11]} 24. R3g2 {[%emt 0:07:23]} Nf4 {[%emt 0:03:27]} 25. Bxf4 {[%emt 0:02:45]} exf4 {[%emt 0:00:01]} 26. Qxf4 {[%emt 0:02:05]} Be5 {[%emt 0:02:48]} 27. Qh4 {[%emt 0:00:34]} Bg6 {[%emt 0:03:03]} 28. Ne6 {[%emt 0:14:56]} Nxe6 {[%emt 0:03:44]} 29. dxe6 {[%emt 0:04:19]} Qxe6 30. Qh6 {[%emt 0:03:14]} Bf5 {[%emt 0:03:05]} 31. Ng5 {[%emt 0:00:56]} Qg6 {[%emt 0:02:24]} 32. Bxf5 {[%emt 0:00:35]} Qxf5 {[%emt 0:00:26]} 33. Ne6 {[%emt 0:01:13]} Rxg2 {[%emt 0:00:26]} 34. Rxg2 {[%emt 0:00:27]} Qb1+ {[%emt 0:00:10]} 1/2-1/2